{"text_format":"1","workbook":"xlsx","n_sheets":6,"sheets":["Prequalification","Guide","Pointage","LST","BD","CoteZ"],"not_rendered":{"charts":0,"images":1,"macros":1,"external_links":0,"defined_names":4,"comments":0,"pivot_tables":0},"unopened":[],"bounds":{"document_bytes":16777216,"sheet_cells":100000,"rows_first":2000,"rows_last":500,"rows_between":2000,"halvings":0,"cell_chars":16384,"cell_head_chars":4096},"cells_cut":0,"cells_raw":0,"read":"whole","date_system":"1900"}

{"sheet":"Prequalification","index":0,"n_rows":331,"n_cols":67,"rows_kept":331,"cut":false,"hidden":false,"merged":[[13,3,13,5],[30,3,30,5],[150,1,150,7],[149,1,149,7],[146,1,147,7],[141,1,142,7],[133,1,134,7],[135,1,136,7],[137,1,138,7],[84,1,84,7],[117,1,117,7],[104,3,105,7],[92,3,93,11],[151,1,151,7],[1,0,1,7],[139,1,140,7],[126,1,127,7],[3,1,4,7],[9,1,9,7],[32,1,32,7],[122,1,122,7],[108,1,115,7],[81,3,83,7],[95,3,96,7],[98,3,99,10],[101,3,102,7],[6,1,6,7],[51,1,51,7],[144,1,144,7]]}
[]
["Formulaire de préqualification et de données financières",null,null,null,null,null,null,null,null,null,null,null,null,null,null,null,null,null,null,null,null,null,null,null,null,null,{"$f":"F40","v":0}]
[null,null,null,null,null,null,null,null,null,null,null,null,null,null,null,null,null,null,null,null,null,null,null,null,null,null,{"$f":"H40","v":0}]
[null,"Veuillez transcrire vos données financières des trois derniers exercices financiers dans les cases bleues. Celles-ci doivent être identiques à vos états financiers***, soit sans aucune modification, altération ou ajustement de votre part."]
[]
[]
[null,"Notez que le MAPAQ demandera de manière aléatoire les états financiers*** pour fins de vérifications. Pour envoyer ce formulaire au bon destinataire, suivre les instructions au bas du formulaire."]
[]
[]
[null,"Informations sur le demandeur"]
[]
[null,"Numéro d’entreprise du Québec (NEQ)"]
[]
[null,"Nom légal du demandeur "]
[]
[null,"Date d'immatriculation (AAAA-MM-JJ)",null,null,"Comme indiqué dans votre état de renseignements au registre des entreprises."]
[]
[null,"Depuis combien d'années commercialisez-",null,0,"À titre d'exemples : inscrivez 2,5 pour deux ans et demi; 8,0 pour huit ans; etc."]
[null,"vous vos produits?"]
[]
[null,"Quelle est l'estimation du coût du projet?",null,0,"Combien pensez-vous investir dans ce projet? Veuillez consulter le texte intégral du SIAM "]
[null,null,null,null,"pour avoir une idée des dépenses admissibles. Vous pourrez préciser les dépenses dans"]
[null,null,null,null,"le Formulaire de coûts de projet que vous recevrez si la préqualification est concluante."]
[null,"Dans l'estimation du coût de projet, prévoyez-vous",null,"Choisir une option "]
[null,"l'embauche d'un(-e) spécialiste en développement "]
[null,"de marché ou en marketing?"]
[]
[null,"Quelle est l'estimation des retombées ",null,0,"À court terme : à la fin du projet, maximum 12 mois suivants la date "]
[null,"potentielles ($) du projet?",null,null,"de fin du projet."]
[]
[null,"Quel est votre secteur d’activité principal?",null,"Choisir une option "]
[]
[null,"État des résultats"]
[]
[null,null,null,"Année 1",null,"Année 2",null,"Année 3"]
[null,{"$f":"ROUND(((TODAY()-D38)/30.4),1)","v":5.2},null,"Année la plus récente\nAAAA-MM-JJ",null,"AAAA-MM-JJ",null,"Année la plus ancienne\nAAAA-MM-JJ"]
[]
[null,{"$f":"IF($D$38-365=$F$38,1,0)","v":1},"a)","2022-12-31",null,"2021-12-31",null,"2020-12-31",null,null,null,null,null,null,null,null,null,null,null,null,null,null,0,1,2]
[null,{"$f":"IF($F$38-365=$H$38,1,0)","v":1}]
[null,"Chiffre d'affaires","b)",0,null,0,null,0,null,null,null,null,null,null,null,null,null,null,null,null,{"$f":"COUNTIF(D40:H40,0)","v":3},null,{"$f":"((($D$40-$F$40)/$F$40)+(($F$40-$H$40)/$H$40))/2","v":{"$error":"#DIV/0!"}},{"$f":"($D$40-$F$40)/$F$40","v":{"$error":"#DIV/0!"}},"S. O."]
[]
[null,"Intérêts de la dette à LT**","c)",0,null,0,null,0,null,null,null,null,null,null,null,null,null,null,null,null,null,null,0,1,2]
[]
[null,"Amortissements","d)",0,null,0,null,0,null,null,null,null,null,null,null,null,null,null,null,null,null,null,{"$f":"(D46+D44+D42)/(H46+H44+H42)","v":{"$error":"#DIV/0!"}},{"$f":"(D46+D44+D42)/(F46+F44+F42)","v":{"$error":"#DIV/0!"}},"S. O."]
[]
[null,"Bénéfice avant impôts","e)",0,null,0,null,0]
[]
[null,"Bénéfice net","f)",0,null,0,null,0,null,null,null,null,null,null,null,null,null,null,null,null,null,null,{"$f":"IF(U40=$W$38,$W$44,IF(U40=$X$38,$X$44,IF(U40=$Y$38,$Y$44)))","v":false}]
[]
[null,"Frais de vente","r)",0,null,0,null,0]
[]
[null,"Bilan",null,null,null,null,null,null,null,null,null,null,null,null,null,null,null,null,null,null,{"$f":"COUNTIF(D50:H50,0)","v":3},{"$f":"3-U52","v":0}]
[]
[null,null,null,{"$f":"Prequalification!$D$35","v":"Année 1"},null,{"$f":"Prequalification!$F$35","v":"Année 2"},null,{"$f":"Prequalification!$H$35","v":"Année 3"}]
[]
[null,"Sous-total actif CT*","g)",0,null,0,null,0]
[]
[null,"Sous-total actif LT","h)",0,null,0,null,0]
[]
[null,"Actifs totaux",null,{"$f":"SUM(D56:D58)","v":0},null,{"$f":"SUM(F56:F58)","v":0},null,0]
[]
[null,"Sous-total passif CT","i)",0,null,0,null,0]
[]
[null,"Sous-total passif LT","j)",0,null,0,null,0]
[]
[null,"Passifs totaux",null,{"$f":"SUM(D62:D64)","v":0},null,{"$f":"SUM(F62:F64)","v":0},null,{"$f":"SUM(H62:H64)","v":0}]
[]
[null,"Capitaux propres","k)",0,null,0,null,0]
[]
[null,"Bénéfices non répartis","l)",0,null,0,null,0]
[]
[null,"Crédit reporté au CT","m)",0,null,0,null,0]
[]
[null,"Dû aux actionnaires au CT","n)",0,null,0,null,0]
[]
[null,"Dû aux actionnaires au LT","o)",0,null,0,null,0]
[]
[null,"Dette à long terme reclasser au CT","p)",0,null,0,null,0]
[]
[null,"Validation de vos données financières","q)",{"$f":"IF(((D$60-D$66-D$68)=0),\"OK\",\"Revérifier vos données\")","v":"OK"},null,{"$f":"IF(((F$60-F$66-F$68)=0),\"OK\",\"Revérifier vos données\")","v":"OK"},null,{"$f":"IF(((H$60-H$66-H$68)=0),\"OK\",\"Revérifier vos données\")","v":"OK"},null,null,null,null,null,null,null,null,null,null,null,null,null,null,null,null,null,null,{"$f":"IF(D80=\"OK\",1,0)+IF(F80=\"OK\",1,0)+IF(H80=\"OK\",1,0)","v":3}]
[]
[null,null,null,"Avant de transmettre ce formulaire, la mention « OK » doit apparaître dans chacune des trois colonnes. Dans la négative, veuillez consulter les instructions à ligne 140 (q) ci-dessous pour corrigez les données."]
[]
[]
[null,"Capacité financière et tendance"]
[]
[null,"Mesure de liquidité",{"$f":"CoteZ!I32","v":0},{"$f":"(IFERROR((($F$56-$F$62)/$F$60),0)*0.717)","v":0},null,{"$f":"(IFERROR((($H$56-$H$62)/$H$60),0)*0.717)","v":0},null,{"$f":"(IFERROR((($D$56-$D$62+D$72+$D$74+$D$78)/$D$60),0)*0.717)","v":0},null,{"$f":"(IFERROR((($F$56-$F$62+$F$72+$F$74+$F$78)/$F$60),0)*0.717)","v":0},{"$f":"(IFERROR((($H$56-$H$62+$H$72+$H$74+$H$78)/$H$60),0)*0.717)","v":0}]
[null,"Rendement cumulatif",{"$f":"CoteZ!I33","v":0},{"$f":"(IFERROR(($F$70/$F$60),0)*0.847)","v":0},null,{"$f":"(IFERROR(($H$70/$H$60),0)*0.847)","v":0},null,{"$f":"(IFERROR(($D$70/$D$60),0)*0.847)","v":0},null,{"$f":"(IFERROR(($F$70/$F$60),0)*0.847)","v":0},{"$f":"(IFERROR(($H$70/$H$60),0)*0.847)","v":0}]
[null,"Rentabilité",{"$f":"CoteZ!I34","v":0},{"$f":"(IFERROR((($F$46+$F$42)/$F$60),0)*3.107)","v":0},null,{"$f":"(IFERROR((($H$46+$H$42)/$H$60),0)*3.107)","v":0},null,{"$f":"(IFERROR(((($D$46+$D$44+$D$42))/$D$60),0)*3.107)","v":0},null,{"$f":"(IFERROR(((($F$46+$F$44+$F$42))/$F$60),0)*3.107)","v":0},{"$f":"(IFERROR(((($H$46+$H$44+$H$42))/$H$60),0)*3.107)","v":0}]
[null,"Structure de capital",{"$f":"CoteZ!I35","v":0},{"$f":"(IFERROR(($F$60/$F$66),0)*0.42)","v":0},null,{"$f":"(IFERROR(($H$60/$H$66),0)*0.42)","v":0},null,{"$f":"(IFERROR(($D$60/$D$66),0)*0.42)","v":0},null,{"$f":"(IFERROR(($F$60/$F$66),0)*0.42)","v":0},{"$f":"(IFERROR(($H$60/$H$66),0)*0.42)","v":0}]
[null,"Efficacité de la gestion des actifs",{"$f":"CoteZ!I36","v":0},{"$f":"(IFERROR(($F$40/$F$60),0)*0.998)","v":0},null,{"$f":"(IFERROR(($H$40/$H$60),0)*0.998)","v":0},null,{"$f":"(IFERROR(($D$40/$D$60),0)*0.998)","v":0},null,{"$f":"(IFERROR(($F$40/$F$60),0)*0.998)","v":0},{"$f":"(IFERROR(($H$40/$H$60),0)*0.998)","v":0}]
[]
[null,"Cote de solvabilité (Cote Z - Altman)",{"$f":"SUM(C87:C91)","v":0},"La cote Z doit être plus grande ou égale à 1,30. Dans le cas contraire, veuillez fournir des explications dans la zone Commentaires ci-dessous. Plus le résultat est près de zéro, plus le risque d’ennui financier et de faillite est élevé. "]
[]
[null,null,null,{"$f":"SUM(D87:D91)","v":0},null,{"$f":"SUM(F87:F91)","v":0},null,{"$f":"SUM(H87:H91)","v":0},null,{"$f":"SUM(J87:J91)","v":0},{"$f":"SUM(K87:K91)","v":0}]
[null,"Liquidité générale",{"$f":"D56/D62","v":{"$error":"#DIV/0!"}},"Le ratio doit être plus grand ou égal à 1,15. Dans le cas contraire, veuillez fournir des explications dans la zone Commentaires ci-dessous."]
[]
[null,null,null,null,null,null,null,null,null,null,null,null,null,null,null,null,null,null,null,null,null,null,null,null,null,null,{"$f":"$F$56/$F$62","v":{"$error":"#DIV/0!"}},null,{"$f":"$H$56/$H$62","v":{"$error":"#DIV/0!"}},null,{"$f":"($D$56+$D$74+$D$44)/($D$62-$D$42)","v":{"$error":"#DIV/0!"}},null,{"$f":"($F$56+$F$74+$F$44)/($F$62-$F$42)","v":{"$error":"#DIV/0!"}},{"$f":"($H$56+$H$74+$H$44)/($H$62-$H$42)","v":{"$error":"#DIV/0!"}}]
[null,"Taux de croissance moyen (TCM)",{"$f":"IF(U40=$W$38,$W$40,IF(U40=$X$38,$X$40,IF(U40=$Y$38,$Y$40)))","v":false},"Le TCM des livraisons manufacturières de l'industrie québécoise, sur la base 2019-2022, est de 4,93 %. Si votre TCM est inférieur à celui de l'industrie, faite part de votre réalité dans la zone Commentaires ci-dessous."]
[null,null,null,null,null,null,null,null,null,null,null,null,null,null,null,null,null,null,null,null,null,null,null,null,null,null,null,null,null,null,null,null,null,null,null,null,null,null,null,null,null,null,null,null,null,null,null,null,null,null,null,null,null,null,null,null,null,null,null,null,null,null,null,null,null,null,{"$f":"IF(C93<1.3,1,0)","v":1}]
[null,null,null,null,null,null,null,null,null,null,null,null,null,null,null,null,null,null,null,null,null,null,null,null,null,null,null,null,null,null,null,null,null,null,null,null,null,null,null,null,null,null,null,null,null,null,null,null,null,null,null,null,null,null,null,null,null,null,null,null,null,null,null,null,null,null,{"$f":"IF(C96<1.15,1,0)","v":{"$error":"#DIV/0!"}}]
[null,"Autofinancement",{"$f":"(D68+D74+D76)/D60","v":{"$error":"#DIV/0!"}},"Le ratio idéal doit être plus grand ou égal à 0,5. Dans le cas contraire, veuillez fournir des explications dans la zone Commentaires ci-dessous.",null,null,null,null,null,null,null,null,null,null,null,null,null,null,null,null,null,null,null,null,null,null,null,null,null,null,null,null,null,null,null,null,null,null,null,null,null,null,null,null,null,null,null,null,null,null,null,null,null,null,null,null,null,null,null,null,null,null,null,null,null,null,{"$f":"IF(C99<4.93,1,0)","v":0}]
[null,null,null,null,null,null,null,null,null,null,null,null,null,null,null,null,null,null,null,null,null,null,null,null,null,null,null,null,null,null,null,null,null,null,null,null,null,null,null,null,null,null,null,null,null,null,null,null,null,null,null,null,null,null,null,null,null,null,null,null,null,null,null,null,null,null,{"$f":"IF(C102<0.5,1,0)","v":{"$error":"#DIV/0!"}}]
[null,null,null,null,null,null,null,null,null,null,null,null,null,null,null,null,null,null,null,null,null,null,null,null,null,null,null,null,null,null,null,null,null,null,null,null,null,null,null,null,null,null,null,null,null,null,null,null,null,null,null,null,null,null,null,null,null,null,null,null,null,null,null,null,null,null,{"$f":"IF(C105<1,1,0)","v":0}]
[null,"BAIIA croissance",{"$f":"IF(U40=$W$38,$W$44,IF(U40=$X$38,$X$44,IF(U40=$Y$38,$Y$44)))","v":false},"Le taux idéal doit être plus grand que 1,0. Dans le cas contraire, veuillez fournir des explications dans la zone Commentaires ci-dessous.",null,null,null,null,null,null,null,null,null,null,null,null,null,null,null,null,null,null,null,null,null,null,null,null,null,null,null,null,null,null,null,null,null,null,null,null,null,null,null,null,null,null,null,null,null,null,null,null,null,null,null,null,null,null,null,null,null,null,null,null,null,null,{"$f":"SUM(BO100:BO104)","v":{"$error":"#DIV/0!"}}]
[]
[]
[null,"Commentaires pour clarifier votre situation financière si les résultats ci-dessus sont inférieurs à ceux attendus :"]
[]
[]
[]
[]
[]
[]
[]
[]
[]
[null,"Instructions"]
[]
[null,"Abréviation "]
[null,"* Court terme → CT"]
[null,"** Long terme → LT"]
[null,"***Si les états financiers sont demandés par le MAPAQ, ils doivent être externes et vérifiés, examinés ou compilés par un comptable professionnel agréé (CPA) et représenter une année complète d’exploitation (12 mois) pour chaque exercice financier. Si les états financiers ne correspondent pas à ce qui précède, la préqualification est automatiquement non concuante puisque les données financières ne rencontrent par les exigences du SIAM."]
[null,"Précisions"]
[null,"a) Inscrire la date de vos états financiers AAAA-MM-JJ. Année 1 = l'année la plus récente. Si la date s'inscrit en rouge, vos derniers états financierss ont plus de 18 mois = vous ne pouvez pas faire une demande de préqualification."]
[null,"b) Votre chiffre d'affaires total. Cette information se trouve généralement dans l'état des résultats."]
[null,"c) Il s'agit des intérêts payés au cours de l'année financière portant uniquement sur la dette à long terme. Cette information se trouve généralement dans les notes des états financiers."]
[]
[null,"d) Cette information se trouve généralement dans les notes des états financiers. "]
[null,"e) et f) Ces informations se trouvent dans l'état des résultats. "]
[null,"g) à k) Ces informations se trouvent dans le bilan. "]
[null,"l) Dans les cas de S.E.N.C. ou d’entreprise individuelle, mettre le montant de l’Avoir au bilan."]
[null,"m) Il s'agit d'un solde de crédit non utilisé. Cette information se trouve dans le passif à court terme."]
[null,"n) Il s'agit d'un prêt ou d'une avance octroyée par un actionnaire à l'entreprise qui est remboursable à court terme. Cette information se trouve dans le passif à court terme."]
[]
[null,"o) Il s'agit d'un prêt ou d'une avance octroyée par un actionnaire à l'entreprise qui est remboursable à long terme. Cette information se trouve dans le passif à long terme."]
[]
[null,"p) Il s'agit d'une dette à long terme qui a été reclassée au court terme pour diverses raisons (ex.: vous n'avez pas respecté les clauses restrictives de la banque.)."]
[]
[null,"q) Cette validation permet uniquement de vérifier si vos Actifs = Passifs + Capitaux propres. Il s'agit de la formule de base en comptabilité. Les trois colonnes doivent indiquer « OK » avant de soumettre votre formulaire."]
[]
[null,"r) Apparaît dans l'état des résultats et est généralement constitué des dépenses de marketing, de promotion, de publicité, de commissions et de représentation."]
[]
[]
[null,"Déclaration"]
[]
[null,"En transmettant le présent formulaire, je déclare que tous les renseignements sont exacts et que toute fausse déclaration de ma part pourrait entraîner le rejet de ma demande."]
[]
[]
[null,"Enregistrez ce formlaire et l'envoyer en cliquant sur l'adresse courriel ci-dssous."]
[null,"siam@mapaq.gouv.qc.ca"]
[null,{"$f":"IF(AND(D80=\"OK\",F80=\"OK\",H80=\"OK\"),\"\",\"Vérifiez vos données avant d'envoyer ce formulaire (voir lignes 140 et 80)\")","v":""}]
[]
[]
[null,"Prénom, nom, titre",null,null,null,"Date"]
[]
[]
[]
[]
[]
[]
[]
[]
[]
[]
[]
[]
[]
[]
[]
[]
[]
[]
[]
[]
[]
[]
[]
[]
[]
[]
[]
[]
[]
[]
[]
[]
[]
[]
[]
[]
[]
[]
[]
[]
[]
[]
[]
[]
[]
[]
[]
[]
[]
[]
[]
[]
[]
[]
[]
[]
[]
[]
[]
[]
[]
[]
[]
[]
[]
[]
[]
[]
[]
[]
[]
[]
[]
[]
[]
[]
[]
[]
[]
[]
[]
[]
[]
[]
[]
[]
[]
[]
[]
[]
[]
[]
[]
[]
[]
[]
[]
[]
[]
[]
[]
[]
[]
[]
[]
[]
[]
[]
[]
[]
[]
[]
[]
[]
[]
[]
[]
[]
[]
[]
[]
[]
[]
[]
[]
[]
[]
[]
[]
[]
[]
[]
[]
[]
[]
[]
[]
[]
[]
[]
[]
[]
[]
[]
[]
[]
[]
[]
[]
[]
[]
[]
[]
[]
[]
[]
[]
[]
[]
[]
[]
[]
[]
[]
[]
[]
[]
[]
[]
[]
[null,null,null,"Revérifier vos données"]
[null,null,null,"OK"]
[]
[null,null,null,"Choisir une option (liste déroulante)"]
[null,null,null,"Oui"]
[null,null,null,"Non"]

{"sheet":"Guide","index":1,"n_rows":21,"n_cols":2,"rows_kept":21,"cut":false,"hidden":false,"merged":[[1,0,1,1],[3,0,3,1],[5,0,5,1],[20,0,20,1]]}
["Étape 1 : préqualification"]
["L’étape de préqualification est préalable avant de déposer une demande d’aide financière complète. Elle permet de valider la capacité financière ainsi que les critères d’admissibilité quant à l’expérience en commercialisation et au chiffre d’affaires."]
[]
["Il est possible que le MAPAQ exige une copie des états financiers pour finaliser la validation de la préqualification ou lorsqu’il procède à un échantillonnage aléatoire afin de vérifier la véracité des informations reçues. Dans l’une ou l’autre des situations, sachez que les états financiers doivent être externes et vérifiés, examinés ou compilés par un comptable professionnel agréé (CPA) et représenter une année complète d’exploitation (12 mois). Si les états financiers ne correspondent pas à ce qui est mentionné précédemment, ils sont alors reconnus non recevables et la préqualification est automatiquement non concluante. Le demandeur sera invité à se conformer à cette exigence de recevabilité afin de procéder à une nouvelle étape de préqualification."]
[]
["Pour qu’une préqualification soit satisfaisante, l'entreprise doit obtenir le pointage minimal requis. Dans un tel cas, l'entreprise est informée que la préqualification est satisfaisante et qu’Aliments du Québec fera suivre les formulaires de demande d’aide financière et de coûts de projet et de montage financier sous peu. Dans le cas contraire, soit un complément d’information sera demandé pour finaliser la validation, soit l'entreprise sera avisée que la préqualification est non concluante; il n'est pas possible de déposer un projet au SIAM."]
["Numéro d’entreprise du Québec (NEQ)","Ensemble de dix chiffres attribués à chaque entreprise qui s’immatricule auprès du REQ."]
["Nom légal du demandeur","Nom légal de l’entreprise tel qu’indiqué au REQ. Dans le cas d’une entreprise à numéro, il est utile d’indiquer entre parenthèses le nom usuel, par exemple 9006-1234 Québec inc. (Bleuets YUL)"]
["Date d'immatriculation (AAAA-MM-JJ)","Tel qu’indiqué au REQ."]
["Depuis combien d'années commercialisez- vous vos produits?","Corresponds au nombre d’années que vous commercialisez vos produits et services. L’expérience minimale requise est d’une année. Prenez note que la date d’immatriculation figurant au REQ n’a aucun lien avec le début de l’expérience en commercialisation."]
["Quelle est l'estimation du coût du projet?","À l’étape de préqualification, vous devez estimer sommairement le coût de votre projet. Vous pouvez vous référer au texte du SIAM pour prendre connaissance des dépenses admissibles. Si la préqualification est positive, vous recevrez le Formulaire de coûts de projet et vous pourrez les revoir et les détailler. Il n’est pas nécessaire que le coût indiqué dans le Formulaire de préqualification soit exactement la même que dans le Formulaire de coûts de projet."]
["Dans l'estimation du coût de projet, prévoyez-vous l'embauche d'un(-e) spécialiste en développement de marché ou en marketing?","La portion salariale d'un projet nee fait pas partie du calcul dans le ratio de coûts de projet par rapport au chiffre d'affaires et en fonction des liquidités générales de l'entreprise. Si à cette étape vous ne savez pas s'il y aura une embauche, choisissez Pas encore décidé."]
["Quelle est l’estimation des retombées potentielles ($) du projet","Indiquez la valeur monétaire estimée des ventes supplémentaires du fait de la réalisation du projet. Cette valeur monétaire estimée devrait refléter les ventes supplémentaires à court terme (à la fin du projet ou dans l’année suivant la fin du projet). Y a-t-il d’autres retombées espérées, telles que des investissements additionnels, de la création d’emplois, etc.?"]
["Secteur d’activité principal","Industrie dans laquelle le demandeur évolue."]
["Date des états financiers (AAAA-MM-JJ), dans la section États des résultats","Inscrire la date de vos états financiers de la manière suivante : AAAA-MM-JJ. Année 1 = l'année la plus récente. Si la date s'inscrit en rouge, vos derniers états financierss vérifiés ont plus de 18 mois et, par conséquent, vous ne pouvez pas faire une demande de préqualification."]
["États des résultats et bilan ","Remplissez le tableau exactement tel qu’inscrit dans vos états financiers, et ce, pour les trois derniers exercices financiers complétés. Vous ne devez pas faire de modification, altération, ajustement ou arrondissement. Les états financiers reconnus et admissibles au SIAM doivent être externes et vérifiés, examinés ou compilés par un comptable professionnel agréé (CPA). Lors de l’étape de préqualification, il est possible que le MAPAQ exige une copie des états financiers pour finaliser la procédure de validation ou, sur une base aléatoire, pour des fins de contrôle sur l’exactitude des données transmises."]
["Validation de vos données financières","S’il y a des erreurs dans la saisie des données, le message sous la colonne concernée indiquera « Revérifiez vos données »; dans le cas contraire, le message indiquera « OK ». Transmettez ce formulaire uniquement si les trois colonnes indiquent « OK ». Au besoin, voir la précision à la fin du formulaire ou consulter votre comptable."]
["Capacité financière et tendance","Les résultats sont automatisés et ajustés. Ils expriment une partie des critères qui doivent être satisfaits par le demandeur. S’il y a un ou plusieurs critères qui ne rencontrent pas les résultats recherchés, vous êtes invité à commenter votre situation dans la section commentaires. Peut-être y a-t-il une ou des situations particulières qui expliquent les résultats."]
["Déclaration","Indiquez le nom et le titre de la personne qui a rempli ce formulaire. Indiquez la date. Sauvegardez-le et retournez-le à l’adresse courriel indiquée au bas du formulaire."]
[]
["Une fois le formulaire reçu par le MAPAQ, le délai de traitement pour la préqualification est estimé à deux jours ouvrables. Si la préqualification est satisfaisante, vous serez informé rapidement et vous recevrez, dans les jours suivants, d’Aliments du Québec, les instructions pour déposer une demande d’aide financière complète. Si la préqualification est non concluante, vous recevrez soit une demande d’information additionnelle pour finaliser la préqualification ou soit un courriel vous informant que la capacité financière ou d'autres critères d’admissibilités ne répondent pas aux exigences du SIAM."]

{"sheet":"Pointage","index":2,"n_rows":118,"n_cols":55,"rows_kept":118,"cut":false,"hidden":true,"merged":[[91,5,91,14],[86,15,100,32],[90,8,90,14],[89,8,89,14],[88,8,88,14],[87,8,87,14],[87,6,87,7],[88,6,88,7],[89,6,89,7],[90,6,90,7],[85,5,85,14],[86,5,86,14],[3,7,3,10],[4,7,4,10],[3,2,3,5],[57,5,57,6],[58,5,58,6],[59,5,59,6],[60,5,60,6],[5,14,5,16],[6,14,6,16],[16,2,16,5],[16,7,16,10],[19,2,19,5],[2,2,2,5],[25,1,26,5],[15,50,15,53],[29,16,31,22],[19,7,19,10],[20,7,20,10],[25,7,35,15],[2,7,2,10]]}
[]
[null,null,null,null,null,null,null,null,null,null,null,null,null,null,null,null,null,null,null,null,null,null,null,null,null,null,null,null,null,null,null,null,"Ne pas effacer, copier-coller, modifier…",null,null,null,null,null,null,null,null,null,null,null,null,0,1,2,3,"Pointage","Résultat"]
[null,null,"Résultat",null,null,null,null,"Résultat ajustée",null,null,null,null,null,null,null,null,null,{"$f":"Prequalification!D40/1000000","v":0},null,null,null,null,null,null,null,null,null,null,null,null,null,null,null,null,null,null,null,null,null,null,null,null,null,null,null,0,0.9,1,2,"années",{"$f":"IF(M6<AU3,0,IF(AND(M6>=AU3,M6<AV3),1,IF(AND(M6>=AV3,M6<AW3),2,IF(M6>=AW3,3,0))))","v":0}]
[null,null,"Moyenne pondérée (PQ)",null,null,null,null,"(jugement professionnel)",null,null,null,null,"Données","Pointage",null,null,null,null,null,null,null,null,null,null,null,null,null,null,null,null,null,"NEQ",{"$f":"Prequalification!D12","v":0},null,null,null,null,null,null,null,null,null,null,null,null,0,200000,250000,500000,"$",{"$f":"IF(Prequalification!D40<AU4,0,IF(AND(Prequalification!D40>=AU4,Prequalification!D40<AV4),1,IF(AND(Prequalification!D40>=AV4,Prequalification!D40<AW4),2,IF(Prequalification!D40>=AW4,3,0))))","v":0}]
[null,null,null,null,null,null,null,null,null,null,null,null,"demandeur",null,null,null,null,null,null,null,null,null,null,null,null,null,null,null,null,null,null,"NOM",{"$f":"Prequalification!D14","v":0}]
[null,null,null,"C1",{"$f":"N6","v":0},null,null,null,"C1",null,null,"C1",{"$f":"Prequalification!D18","v":0},{"$f":"IF(Prequalification!V52>=1,AY3,0)","v":0},"C1 : Exprience commercialisation",null,null,"Doit avoisiner une année (0,9 mois+=1, 12mois+=2, 24mois+=3)",null,null,null,null,null,null,null,null,null,null,null,null,null,"est. Couts",{"$f":"Prequalification!D21","v":0},null,null,null,null,null,null,"2023-01-01","2023-12-31",null,null,null,null,0,1,2,3,"Pointage"]
[null,null,null,"C2",0,null,null,null,"C2",null,null,"C2",{"$f":"ROUND(R3,2)","v":0},{"$f":"AY4","v":0},"C2 : Chiffre d'affaires (M$)",null,null,"Doit avoisiner 250 K$ (200K$+=1, 250K$+=2, 500K$=3)",null,null,null,null,null,null,null,null,null,null,null,null,null,"est. ret",{"$f":"Prequalification!D28","v":0},null,null,null,null,null,null,"2022-01-01","2022-12-31",null,null,null,null,0.16,0.12,0.12,0.06,"%"]
[null,null,null,"L1",{"$error":"#DIV/0!"},null,null,null,"L1",null,null,"L1",{"$f":"IF(Prequalification!D24=LST!O9,(Prequalification!D21-75000)/Prequalification!D40,IF(Prequalification!D24=LST!O10,Prequalification!D21/Prequalification!D40,IF(Prequalification!D24=LST!O11,(Prequalification!D21-35000)/Prequalification!D40,)))","v":{"$error":"#DIV/0!"}},{"$f":"IF(M8>=AT7,0,IF(AND(M8>=AU7,M8<AT7),1,IF(AND(M8>=AW7,M8<AV7),2,IF(M8<AW7,3,0))))","v":{"$error":"#DIV/0!"}},"L1 : Coût du projet vs chiffre d'affaires",null,null,"Tient compte s'il y a embauche ou non d'un(-e) spécialiste",null,null,null,null,null,null,null,null,null,null,null,null,null,"Qailif",{"$f":"E14","v":{"$error":"#DIV/0!"}},null,null,null,null,null,null,"2021-01-01","2021-12-31"]
[null,null,null,"P1",0,null,null,null,"P1",null,null,"P1",{"$f":"Prequalification!C93","v":0},{"$f":"IF(Prequalification!C93<AZ32,0,IF(AND(Prequalification!C93>=AZ32,Prequalification!C93<=BA32),1,IF(AND(Prequalification!C93>=BA32,Prequalification!C93<BB32),2,IF(Prequalification!C93>=BB32,3,0))))","v":0},"P1 : Cote Z - Altman",null,null,null,null,null,null,null,null,null,null,null,null,null,null,null,null,"c1",{"$f":"M6","v":0},null,null,null,null,null,null,"2020-01-01","2020-12-31"]
[null,null,null,"P2",{"$error":"#DIV/0!"},null,null,null,"P2",null,null,"P2",{"$f":"Prequalification!C96","v":{"$error":"#DIV/0!"}},{"$f":"IF(Prequalification!C96<=AY37,0,IF(AND(Prequalification!C96>=AZ37,Prequalification!C96<BA37),1,IF(AND(Prequalification!C96>=BA37,Prequalification!C96<=BB37),2,IF(Prequalification!C96>BB37,3,0))))","v":{"$error":"#DIV/0!"}},"P2 : Liquidité générale (LCT)",null,null,null,null,null,null,null,null,null,null,null,null,null,null,null,null,"c2",{"$f":"M7","v":0},null,null,null,null,null,null,"2019-01-01","2019-12-31"]
[null,null,null,"P3",{"$error":"#DIV/0!"},null,null,null,"P3",null,null,"P3",{"$f":"Prequalification!C102","v":{"$error":"#DIV/0!"}},{"$f":"IF(Prequalification!C102<AY39,0,IF(AND(Prequalification!C102>=AZ39,Prequalification!C102<BA39),1,IF(AND(Prequalification!C102>=BA39,Prequalification!C102<BB39),2,IF(Prequalification!C102>=BB211,3))))","v":{"$error":"#DIV/0!"}},"P3 : Autofinancement",null,null,null,null,null,null,null,null,null,null,null,null,null,null,null,null,"p1",{"$f":"M9","v":0},null,null,null,null,null,null,"00:00:00","00:00:00"]
[null,null,null,"P4",3,null,null,null,"P4",null,null,"P4",{"$f":"Prequalification!C105","v":false},{"$f":"IF(Prequalification!C105<=AY40,0,IF(Prequalification!C105>=BB40,3))","v":3},"P4 : Efficacité de la rentabilité (BAIIA)",null,null,null,null,null,null,null,null,null,null,null,null,null,null,null,null,"p2",{"$f":"M10","v":{"$error":"#DIV/0!"}},null,{"$f":"Prequalification!D38","v":"2022-12-31"},null,null,null,null,null,null,null,null,null,null,"Pondération"]
[null,null,null,"P5",3,null,null,null,"P5",null,null,"P5",{"$f":"Prequalification!C99","v":false},{"$f":"IF(Prequalification!C99<=AY38,0,IF(AND(Prequalification!C99>AY38,Prequalification!C99<AZ38),1,IF(AND(Prequalification!C99>=AZ38,Prequalification!C99<BA38),2,IF(Prequalification!C99>=BB38,3))))","v":3},"P5 : Taux de croissance moyen ",null,null,null,null,null,null,null,null,null,null,null,null,null,null,null,null,"p3",{"$f":"M11","v":{"$error":"#DIV/0!"}},null,null,null,null,null,null,null,null,null,null,null,null,{"$f":"SUM(AT14:AT21)","v":1},null,null,null,null,"GUIDE"]
[null,null,null,"Moyenne",{"$f":"(E6*$AT$14)+(E7*$AT$15)+(E8*$AT$16)+(E9*$AT$17)+(E10*$AT$18)+(E11*$AT$19)+(E12*$AT$20)+(E13*$AT$21)","v":{"$error":"#DIV/0!"}},null,null,null,"Moyenne",{"$f":"SUM(J6:J13)","v":0},null,null,null,null,null,null,null,null,null,null,null,null,null,null,null,null,null,null,null,null,null,"p4",{"$f":"M12","v":false},null,null,null,null,null,null,null,null,null,null,null,"C1",0.05,null,null,null,null,"Viabilité financière"]
[null,null,null,"TOTAL",{"$f":"SUM(E6:E13)","v":{"$error":"#DIV/0!"}},null,null,null,"TOTAL",{"$f":"SUM(J6:J13)","v":0},null,null,"Interprétation si pointage \"0\" ou \"1\"",null,null,null,null,null,null,null,null,null,null,null,null,null,null,null,null,null,null,"p5",{"$f":"M13","v":false},null,null,null,null,null,null,null,null,null,null,null,"C2",0.1,null,null,null,null,"Pointages en fonction des résultat et pondération "]
[null,null,null,"Statut",null,null,null,null,"Statut",null,null,null,"(Lignes A37 et suivantes)",null,null,null,null,null,null,null,null,null,null,null,null,null,null,null,null,null,null,"l1",{"$f":"M8","v":{"$error":"#DIV/0!"}},null,null,null,null,null,null,null,null,null,null,null,"L1",0.15,null,null,null,null,"Pointage",null,null,null,"Pondération"]
[null,null,{"$f":"IF(AND(E8<=1,E14>=2),\"Préqualification satisfaisante 2\",IF(AND(E8>=1,E14>=2),\"Préqualification satisfaisante 1\",IF(E14<2,\"Préqualification non concluante\",\" \")))","v":{"$error":"#DIV/0!"}},null,null,null,null,{"$f":"IF(AND(J8<=1,J15>=16),\"Préqualification satisfaisante 2\",IF(AND(J8>=1,J15>=16),\"Préqualification satisfaisante 1\",IF(AND(J15>0,J15<16),\"Préqualification non concluante\",IF(J15=0,\" \",\" \"))))","v":" "},null,null,null,null,null,null,null,null,null,null,null,null,null,null,null,null,null,null,null,null,null,null,null,"e1",{"$f":"M22","v":{"$error":"#DIV/0!"}},null,"Validation","CA","CA","CA","CA","CA",null,null,null,null,"P1",0.3,null,null,null,null,0,1,2,3,{"$f":"SUM(BC18:BC27)","v":0}]
[null,null,"Pour se qualifier, le total PQ doit être >=2,00",null,null,null,null,"Pour se qualifier, le total Q doit être >=16",null,null,null,null,null,null,null,null,null,null,null,null,null,null,null,null,null,null,null,null,null,null,null,"e2",{"$f":"M23","v":{"$error":"#DIV/0!"}},null,{"$f":"IF(AND(AI12>=AN6,AI12<AO6),1,0)","v":0},{"$f":"Prequalification!$D$40","v":0},{"$f":"Prequalification!$F$40","v":0},{"$f":"Prequalification!$H$40","v":0},0,0,null,null,null,null,"P2",0.2," P2 combiné",null,0.3]
[null,null,null,null,null,null,null,null,null,null,null,null,null,null,null,null,null,null,null,null,null,null,null,null,null,null,null,null,null,null,null,"ca2023",{"$f":"IF(AI18=1,AJ18,IF(AI19=1,AJ19,IF(AI20=1,AJ20,IF(AI21=1,AJ21,IF(AI22=1,AJ22,0)))))","v":0},null,{"$f":"IF(AND(AI12>=AN7,AI12<AO7),1,0)","v":0},0,{"$f":"Prequalification!$D$40","v":0},{"$f":"Prequalification!$F$40","v":0},{"$f":"Prequalification!$H$40","v":0},0,null,null,null,null,"P2",0.1]
[null,null,"Résultat",null,null,null,null,"Résultat ajustée",null,null,null,null,"Données","Pointage",null,null,null,null,null,null,null,null,null,null,null,null,null,null,null,null,null,"ca2022",{"$f":"IF(AI18=1,AK18,IF(AI19=1,AK19,IF(AI20=1,AK20,IF(AI21=1,AK21,IF(AI22=1,AK22,0)))))","v":0},null,{"$f":"IF(AND(AI12>=AN8,AI12<AO8),1,0)","v":0},0,0,{"$f":"Prequalification!$D$40","v":0},{"$f":"Prequalification!$F$40","v":0},{"$f":"Prequalification!$H$40","v":0},null,null,null,null,"P3",0.05]
[null,null,null,null,null,null,null,"(jugement professionnel)",null,null,null,null,"demandeur",null,null,null,null,null,null,null,null,null,null,null,null,null,null,null,null,null,null,"ca2021",{"$f":"IF(AI18=1,AL18,IF(AI19=1,AL19,IF(AI20=1,AL20,IF(AI21=1,AL21,IF(AI22=1,AL22,0)))))","v":0},null,{"$f":"IF(AND(AI13>=AN9,AI13<AO9),1,0)","v":0},0,0,0,{"$f":"Prequalification!$D$40","v":0},0,null,null,null,null,"P4",0.05]
[null,null,null,"E1",{"$f":"$N$22","v":{"$error":"#DIV/0!"}},"G",null,null,"E1",null,"G","E1",{"$f":"Prequalification!D28/(Prequalification!D21/2)","v":{"$error":"#DIV/0!"}},{"$f":"IF(M22<AW109,1,IF(AND(M22>=AX109,M22<AY109),2,IF(M22>=AY109,3,0)))","v":{"$error":"#DIV/0!"}},"E1 : Effet de levier ",null,null,null,null,null,null,null,null,null,null,null,null,null,null,null,null,"ca2020",{"$f":"IF(AI18=1,AM18,IF(AI19=1,AM19,IF(AI20=1,AM20,IF(AI21=1,AM21,IF(AI22=1,AM22,0)))))","v":0},null,{"$f":"IF(AND(AI14>=AN10,AI14<AO10),1,0)","v":0},0,0,0,0,{"$f":"Prequalification!$D$40","v":0}]
[null,null,null,"E2",{"$f":"$N$23","v":{"$error":"#DIV/0!"}},"G",null,null,"E2",null,"G","E2",{"$f":"Prequalification!D28/Prequalification!D40","v":{"$error":"#DIV/0!"}},{"$f":"IF(M23<AW117,1,IF(AND(M23>=AX117,M23<=AY117),2,IF(M23>AY117,3,0)))","v":{"$error":"#DIV/0!"}},"E2 : Impact sur la croissance des ventes",null,null,null,null,null,null,null,null,null,null,null,null,null,null,null,null,"ca2019",{"$f":"IF(AI18=1,AN18,IF(AI19=1,AN19,IF(AI20=1,AN20,IF(AI21=1,AN21,IF(AI22=1,AN22,0)))))","v":0}]
[]
[]
[null,"Interprétation si pointage \"0\" ou \"1\" (Lignes A37 et suivantes)",null,null,null,null,null,"S'il y a une modification des pointages lorsque la préqualification est négative (statut non qualifié) et qu'un jugement professionnel est fait, justifier la modification des pointages :"]
[]
[]
[null,null,null,null,null,null,null,null,null,null,null,null,null,null,null,null,null,null,null,null,null,null,null,null,null,null,null,null,null,null,null,null,null,null,null,null,null,null,null,null,null,null,null,null,null,null,null,null,null,null,null,1.5]
[null,null,null,null,null,null,null,null,null,null,null,null,null,null,null,null,null,null,null,null,null,null,null,null,null,null,null,null,null,null,null,null,null,null,null,null,null,null,null,null,null,null,null,null,null,null,null,null,null,null,"Pointage"]
[null,null,null,null,null,null,null,null,null,null,null,null,null,null,null,null,null,null,null,null,null,null,null,null,null,null,null,null,null,null,null,null,null,null,null,null,null,null,null,null,null,null,null,null,null,null,null,null,null,null,0,1,2,3]
[null,null,null,null,null,null,null,null,null,null,null,null,null,null,null,null,null,null,null,null,null,null,null,null,null,null,null,null,null,null,null,null,null,null,null,null,null,null,null,null,null,null,null,null,null,null,null,null,null,null,null,1,1.29,2.99,"Cote Z - Altman"]
[]
[]
[]
[]
[null,"P1","Cote z - Altman",null,null,"La cote Z - Altman est un pointage de solvabilité qui évalue la probabilité de faillite d'une entreprise",null,null,null,null,null,null,null,null,null,null,null,null,null,null,null,null,null,null,null,null,null,null,null,null,null,null,null,null,null,null,null,null,null,null,null,null,null,null,null,null,null,null,null,null,0.99,1,1.1499999999999999,1.25,"Liquididé générale"]
[null,null,"Pointage","Cote Z",null,"Plus le résultat de l’équation est près de zéro, plus le risque d’ennui financier et de faillite est élevé. Interprétation adaptée DAM.",null,null,null,null,null,null,null,null,null,null,null,null,null,null,null,null,null,null,null,null,null,null,null,null,null,null,null,null,null,null,null,null,null,null,null,null,null,null,null,null,null,null,null,null,0,4.9299999999999997E-2,0.1,0.1,"Taux de croissance moyen "]
[null,null,3,">=2,99",null,"Zone de sécurité, ne se dirige pas vers une faillite",null,null,null,null,null,null,null,null,null,null,null,null,null,null,null,null,null,null,null,null,null,null,null,null,null,null,null,null,null,null,null,null,null,null,null,null,null,null,null,null,null,{"$f":"SUM(E9:E13)","v":{"$error":"#DIV/0!"}},null,null,0.2,0.2,0.35,0.5,"Autofinancement"]
[null,null,2,">=1,30 <2,98",null,"Zone grise, probabilité modéré de faillite",null,null,null,null,null,null,null,null,null,null,null,null,null,null,null,null,null,null,null,null,null,null,null,null,null,null,null,null,null,null,null,null,null,null,null,null,null,null,null,null,null,11,null,null,0.99,null,null,1,"Efficacité de la rentabilité"]
[null,null,1,">=1,00 <1,30",null,"Zone à risque, susceptible de se diriger vers une faillite dans un horizon de 2 ans",null,null,null,null,null,null,null,null,null,null,null,null,null,null,null,null,null,null,null,null,null,null,null,null,null,null,null,null,null,null,null,null,null,null,null,null,null,null,null,null,null,8]
[null,null,0,"<1,00",null,"Risque prononcé de se diriger vers une faillitte dans un horizon de deux ans",null,null,null,null,null,null,null,null,null,null,null,null,null,null,null,null,null,null,null,null,null,null,null,null,null,null,null,null,null,null,null,null,null,null,null,null,null,null,null,null,null,4]
[]
[null,"P2","Liquidité générale",null,null,"Capacité, à la fin d'un exercice financier, de respecter ses obligations financières "]
[null,null,"Pointage","Ratio"]
[null,null,3,">=1,25",null,"Capacité suffisante pour engager d'autres dépenses, idéalement entre 1,25 et 1,75"]
[null,null,2,">=1,15 <1,25",null,"Capacité minimale démontrant une certaine marge de manœuvre pour engager d'autres dépenses"]
[null,null,1,">=1,00 <1,15",null,"Capacité à respecter ses obligations financière à court terme, mais avec une marge de manoeuvre limitée pour de nouvelles dépenses"]
[null,null,0,"<1,00",null,"Incapacité de respecter ses obligations financières à court terme et aucune marge de manœuvre pour de nouvelles dépenses"]
[]
[null,"P3","Autofinancement",null,null,"Si les capitaux propres représentent plus de la moitié des capitaux permanents, cela signifie que les dettes forment moins de la moitié des capitaux permanents. "]
[null,null,"Pointage","Ratio",null,"Une référence parmis d'autres : https://comptabilite.ooreka.fr/astuce/voir/629457/ratio-d-autonomie-financiere#:~:text=Interpr%C3%A9tation,bancaires%20avec%20ses%20capitaux%20propres."]
[null,null,3,">=0,5",null,"Le financement interne/externe est équilibré"]
[null,null,2,">=0,35 <0,5",null,"Les capitaux propres représentent moins de la moitié des capitaux permanents, cela signifie que les dettes (financement externe) sont plus importantes par rapport aux capitaux propres. "]
[null,null,1,">=0,20 >0,35",null,"Le financement interne couvre une petite partie de la dette, ce qui veut dire que la dette est largement financée par l'externe. Le financement externe peut être difficile et il est possible que la dette long terme soit financée par du court terme. "]
[null,null,0,"<0,20",null,"Le financement externe majoritaire et le demandeur n'a plus de marge de manœuvre. Entreprise fraligisée."]
[null,null,null,null,null,"Complément d'interprétation"]
[null,null,null,null,null,{"$f":"Prequalification!C102","v":{"$error":"#DIV/0!"}},null,"Autofinancement ajusté"]
[null,null,null,null,null,{"$f":"(Prequalification!D62-Prequalification!D74)/Prequalification!D60","v":{"$error":"#DIV/0!"}},null,"Ratio financement à CT de l'actif ajusté"]
[null,null,null,null,null,{"$f":"(Prequalification!D64-Prequalification!D76)/Prequalification!D60","v":{"$error":"#DIV/0!"}},null,"Ratio financement à LT de l'actif"]
[null,null,null,null,null,{"$f":"SUM(F58:F60)","v":{"$error":"#DIV/0!"}},null,"Total (doit être égal à 1,00)"]
[]
[null,"P4","Efficacité de la rentabilité (BAIIA)"]
[null,null,"Pointage","Ratio"]
[null,null,3,">=1,0",null,"D'une année à l'autre, la rentabilité est de plus en plus efficace; l'entreprise est en croissance"]
[null,null,0,"<1,0",null,"D'une année à l'autre, la rentabilité diminue; l'entreprise démontre des signes de décroissance"]
[]
[null,"P5","Taux de croissance moyen (4 ans)",null,null,null,null,"Le taux de croissance moyen (TCM)  des livraisons manufacturières de l'industrie québécoise des aliments, des boissons et du tabac (4 ans) (2019: 4,1%, 2020: 2,9 %, 2021: 5,7 %, 2022: 7,0% = 4,93% en moyenne)"]
[null,null,"Pointage","Croissance"]
[null,null,3,">=10%",null,"Croissance distinctive par rapport à celle de l'industrie "]
[null,null,2,">=4,93% <10%",null,"Croissance égale ou supérieure à celle de l'industrie "]
[null,null,1,">0% <4,93%",null,"Croissance observéem mais nférieure à celle de l'industrie "]
[null,null,0,"<0%",null,"Aucune croissance ou en décroissance"]
[]
[]
[null,"L1","Coût du projet vs chiffre d'affaires",null,null,null,null,"Il doit y avoir une adéquation entre le coût du projet vs le chiffre d'affaires. "]
[null,null,"Pointage","Proportion"]
[null,null,3,"<6%",null,"Les coûts du projet sont raisonnables par rapport au chiffres d'affaires"]
[null,null,2,">=6% <12%",null,"Les coûts du projet sont importants par rapport au chiffre d'affaires"]
[null,null,1,">=12% <16%",null,"Les coûts du projet sont questionnables par rapport au chiffre d'affaires***Suggestion en discuter avec le demandeur."]
[null,null,0,">=16%",null,"Les coûts du projet sont élvés par rapport au chiffre d'affaires***"]
[null,null,null,null,null,"***En discuter avec le demandeur. Sérieux de la démarche du projet et capacité réelle du demandeur questionnables"]
[null,null,null,null,null,"***Après discussion et mise à jour des coûts du projet, ajustez le pointage en conséquence<"]
[]
[null,null,null,null,null,"Pistes de réflexion",null,null,null,{"$f":"(Prequalification!D56-Prequalification!D62)","v":0}]
[null,null,null,null,null,"a) Le demandeur a-t-il réellement la capacité financière pour réaliser son projet?"]
[null,null,null,null,null,"b) Nonobstant le pointage LCT, ceux-ci couvrent-ils le coût du projet?",null,null,null,null,null,null,null,null,null,"Demander comment le projet sera financé. En fonction de la réponse, inviter le demandeur à revoir les coûts du projet afin que ceux-ci soient réalistes et en fonction de sa capacité réelle.\n\nDe plus, si la cote Z ou la liquidité générale ou l'autonomie financière obtient un pointage 0 ou 1, recevoir des preuves que le demandeur peut financer son projet, par exemple des états financièrs intérimaires qui démontre de meilleurs résultats, une capitalisation récente, des prêts ou marges de crédit accessibles, des arguments par écrits, etc.\n\nSi le demandeur ne revoit pas les coûts de projet ou ne fait pas la démonstration de sa capacité réelle à le réaliser, le prendre en considération. Dans la synthèse du projet, vous pourriez écrire que la capacité du demandeur à réaliser son projet est remise en question à la suite de votre communication. Vous pourriez recommander à AQ de revoir les dépenses admissibles ou de diminuer le montant de l'aide financière, etc."]
[null,null,null,null,null,null,{"$f":"ROUND(J85,2)","v":0},null,"Liquidités à court terme (LCT) versus"]
[null,null,null,null,null,null,{"$f":"IF(Prequalification!D24=LST!O9,(Prequalification!D21-75000),IF(Prequalification!D24=LST!O10,Prequalification!D21,IF(Prequalification!D24=LST!O11,(Prequalification!D21-35000),)))","v":-75000},null,"Coût du projet"]
[null,null,null,null,null,null,{"$f":"Prequalification!D38","v":"2022-12-31"},null,"Date du dernier exercice financier"]
[null,null,null,null,null,null,{"$f":"ROUND(((TODAY()-G90)/30),1)&\" mois\"","v":"5,3 mois"},null,"Nombre de mois entre \"aujourd'hui\" et le dernier exercice financier"]
[null,null,null,null,null,"c) Si le dernier EF a plus de 6 mois, obtenir des intérimaires pour évaluer la situation?"]
[null,null,null,null,null,null,{"$f":"ROUND(((TODAY()-G90)/30),1)","v":5.3}]
[]
[null,"E1","Effet de levier",null,null,"Retombées anticipées vs aide financière demandée"]
[null,null,"Pointage","Proportion"]
[null,null,3,">=4",null,"Effet de levier supérieur à la moyenne"]
[null,null,2,">=2",null,"Effet de levier dans la moyenne"]
[null,null,1,"<2",null,"Effet de levier sous la moyenne"]
[null,null,0,"=0",null,"Aucun effet de levier à court terme"]
[]
[]
[null,"E2","Impact sur la croissance des ventes",null,null,null,null,null,"Retombées anticipées vs chiffre d'affaires"]
[null,null,"Pointage","Proportion"]
[null,null,3,">15%",null,"Impact sur la croissance des vente supérieur "]
[null,null,2,">=4,5% ",null,"Impact sur la croissance des vente attendu",null,null,null,null,null,null,null,null,null,null,null,null,null,null,null,null,null,null,null,null,null,null,null,null,null,null,null,null,null,null,null,null,null,null,null,null,null,null,null,null,null,"Pour calcul des pointage"]
[null,null,1,"<4,5 %",null,"Impact sur la croissance des vente minime",null,null,null,null,null,null,null,null,null,null,null,null,null,null,null,null,null,null,null,null,null,null,null,null,null,null,null,null,null,null,null,null,null,null,null,null,null,null,null,null,null,"Pointage",null,null,null,"Donnée","Pointage"]
[null,null,0,"=0",null,"Aucun impact sur la croissance des ventes à court terme",null,null,null,null,null,null,null,null,null,null,null,null,null,null,null,null,null,null,null,null,null,null,null,null,null,null,null,null,null,null,null,null,null,null,null,null,null,null,null,null,null,0,1,2,3,"demandeur","demandeur"]
[null,null,null,null,null,null,null,null,null,null,null,null,null,null,null,null,null,null,null,null,null,null,null,null,null,null,null,null,null,null,null,null,null,null,null,null,null,null,null,null,null,null,null,null,null,null,null,0,2,2,4,{"$f":"K80","v":0},{"$f":"IF(AZ109<AV109,0,IF(AZ109<AW109,1,IF(AND(AZ109>=AX109,AZ109<AY109),2,IF(AZ109>=AY109,3,0))))","v":1}]
[null,null,null,null,null,null,null,null,null,null,null,null,null,null,null,null,null,null,null,null,null,null,null,null,null,null,null,null,null,null,null,null,null,null,null,null,null,null,null,null,null,null,null,null,null,null,null,0,"<2",">=2<4",">=4"]
[]
[]
[]
[null,null,null,null,null,null,null,null,null,null,null,null,null,null,null,null,null,null,null,null,null,null,null,null,null,null,null,null,null,null,null,null,null,null,null,null,null,null,null,null,null,null,null,null,null,null,null,"Pour calcul des pointage"]
[null,null,null,null,null,null,null,null,null,null,null,null,null,null,null,null,null,null,null,null,null,null,null,null,null,null,null,null,null,null,null,null,null,null,null,null,null,null,null,null,null,null,null,null,null,null,null,"Pointage",null,null,null,"Donnée","Pointage"]
[null,null,null,null,null,null,null,null,null,null,null,null,null,null,null,null,null,null,null,null,null,null,null,null,null,null,null,null,null,null,null,null,null,null,null,null,null,null,null,null,null,null,null,null,null,null,null,0,1,2,3,"demandeur","demandeur"]
[null,null,null,null,null,null,null,null,null,null,null,null,null,null,null,null,null,null,null,null,null,null,null,null,null,null,null,null,null,null,null,null,null,null,null,null,null,null,null,null,null,null,null,null,null,null,null,0,4.4999999999999998E-2,4.4999999999999998E-2,0.15,{"$f":"K81","v":0},{"$f":"IF(AZ117=C118,0,IF(AZ117<AW117,1,IF(AND(AZ117>=AX117,AZ117<=AY117),2,IF(AZ117>AY117,3,0))))","v":0}]
[null,null,null,null,null,null,null,null,null,null,null,null,null,null,null,null,null,null,null,null,null,null,null,null,null,null,null,null,null,null,null,null,null,null,null,null,null,null,null,null,null,null,null,null,null,null,null,0,"<4,5%",">=4,5%<=15",">15%"]

{"sheet":"LST","index":3,"n_rows":48,"n_cols":15,"rows_kept":48,"cut":false,"hidden":true,"merged":[]}
["Onglet Données$",null,null,null,"Onglet CoûtsProjet",null,null,null,null,null,null,"Onglet DépensesAdmissibles",null,null,"Marché"]
[]
["Secteur d’activité principal",null,null,null,"Activité 4:Marketing",null,null,null,null,null,null,"Statut"]
["Choisir une option ",null,null,null,"Accès à des banques de données",null,null,null,null,null,null,"Sans objet",null,null,"Choisir une option "]
["Abattoir",null,null,null,"Achat d’études de marché",null,null,null,null,null,null,"Reçu",null,null,"Canada"]
["Additifs alimentaires et arômes",null,null,null,"Achat ou placement média",null,null,null,null,null,null,"En attente",null,null,"International"]
["Alimentation animale",null,null,null,"Activités de dégustations",null,null,null,null,null,null,"Manquant"]
["Bière",null,null,null,"Adaptation de produit, d'emballage et d'étiquette "]
["Boissons alcooliques",null,null,null,"Plaques d’impression lorsqu’il y a adaptation d’un emballage ou d’une étiquette",null,null,null,null,null,null,"Validation",null,null,"Choisir une option "]
["Boissons non alcooliques",null,null,null,"Conception et création de contenu",null,null,null,null,null,null,"Conforme",null,null,"Oui"]
["Céréales, oléagineux et protéines végétales",null,null,null,"Frais de référencement pour un nouveau produit avec une chaîne de détail",null,null,null,null,null,null,"Non conforme",null,null,"Non"]
["Charcuterie",null,null,null,"Gestion et animation des médias sociaux ",null,null,null,null,null,null,"Satisfaisant",null,null,"Pas encore décidé"]
["Fruits et légumes transformé",null,null,null,"Sondage ou de test de marché",null,null,null,null,null,null,"Non satisfaisant"]
["Grignotines",null,null,null,"Services d'un influenceur ou d'un ambassadeur de marque"]
["Insectes",null,null,null,"Honoraires professionnels"]
["Mets préparés",null,null,null,"Activité 5: Développement des affaires"]
["Œuf de consommation ",null,null,null,"Développement du site web du demandeur"]
["Produits aquatiques",null,null,null,"Actualisation d'une stratégie de commercialisation "]
["Produits de boulangerie et pâtisserie",null,null,null,"Enregistrement de marques de commerce"]
["Produits de l'érable et miel",null,null,null,"Abonnement et services au SEAO du Gouvernement du Québec"]
["Produits laitiers et ses succédanés",null,null,null,"Frais fixe pour un plan d’accès ou un abonnement mensuel sur une plateforme de vente en ligne ou de maillage d’affaires"]
["Sauces, vinaigrettes et assaisonnements",null,null,null,"Frais fixe, sur une base mensuelle, pour les services d’un nouveau courtier pour la première année"]
["Sucres et confiseries",null,null,null,"Démarches en vue d’obtenir un contrat par appel d’offres ou sur invitation"]
["Viandes et volailles",null,null,null,"Honoraires professionnels"]
["Autre produits transformés",null,null,null,"Activité 6 : Évènements commerciaux"]
["Autre",null,null,null,"Espace (location et amémagement), inscription individuelle et transport/expédition"]
[null,null,null,null,"Autre frais connexes (décrire ci-dessous)"]
[]
[null,null,null,null,"Faire un choix"]
[null,null,null,null,"Choisir une option (liste déroulante)"]
[null,null,null,null,"Oui"]
[null,null,null,null,"Non"]
[]
[null,null,null,null,"Source de financement"]
[null,null,null,null,"Choisir une option (liste déroulante)"]
[null,null,null,null,"MAPAQ (autre programme ou mesure que SIAM)"]
[null,null,null,null,"Gouvernement du Québec (autre que MAPAQ)"]
[null,null,null,null,"Gouvernement du Canada"]
[null,null,null,null,"Municipal (ville ou MRC par exemple)"]
[null,null,null,null,"Autre source publique (organisme financé par l'État, par exemple Investissement Québec, Aliments du Québec, Groupe Export)"]
[]
[null,null,null,null,"Type de financement"]
[null,null,null,null,"Choisir une option (liste déroulante)"]
[null,null,null,null,"Subvention"]
[null,null,null,null,"Prêt remboursable"]
[null,null,null,null,"Prêt"]
[null,null,null,null,"Garantie de prêt"]
[null,null,null,null,"Crédit d'impôt"]

{"sheet":"BD","index":4,"n_rows":10,"n_cols":28,"rows_kept":10,"cut":false,"hidden":true,"merged":[[3,0,3,6]]}
[]
[]
[]
[]
[]
[]
["Entreprise","NEQ","Secteur \nd’activité","Date","Année","Chiffre d'affaires","Intérêts de la \ndette à LT","Amortissements","Bénéfice avant \nimpôts","Bénéfice net","Actifs CT","Actifs LT","Actifs totaux","Passifs CT","Passifs LT","Passifs totaux","Capitaux propres","BNR","Crédit reporté \nau CT","Avance aux \nactionnaires au CT","Avance aux \nactionnaires au LT","Dette à long terme \nreclasser au CT","Code Z","Liquidité \nGénéral","Endettement","Code Z\najusté","Liquidité générale \najustée","Endettement \najusté"]
[{"$f":"Prequalification!$D$12","v":0},{"$f":"Prequalification!$D$14","v":0},{"$f":"Prequalification!$D$31","v":"Choisir une option "},{"$f":"IF(Prequalification!$D$38=\"\",\"\",Prequalification!$D$38)","v":"2022-12-31"},{"$f":"D8","v":"2022-12-31"},{"$f":"Prequalification!$D$40","v":0},{"$f":"Prequalification!$D$42","v":0},{"$f":"Prequalification!$D$44","v":0},{"$f":"Prequalification!$D$46","v":0},{"$f":"Prequalification!$D$48","v":0},{"$f":"Prequalification!$D$56","v":0},{"$f":"Prequalification!$D$58","v":0},{"$f":"Prequalification!$D$60","v":0},{"$f":"Prequalification!$D$62","v":0},{"$f":"Prequalification!$D$64","v":0},{"$f":"Prequalification!$D$66","v":0},{"$f":"Prequalification!$D$68","v":0},{"$f":"Prequalification!$D$70","v":0},{"$f":"Prequalification!$D$72","v":0},{"$f":"Prequalification!$D$74","v":0},{"$f":"Prequalification!$D$76","v":0},{"$f":"Prequalification!$D$78","v":0},{"$f":"Prequalification!C93","v":0},{"$f":"Prequalification!C96","v":{"$error":"#DIV/0!"}},{"$f":"IFERROR((Prequalification!$D$66/Prequalification!$D$60),0)","v":0},{"$f":"CoteZ!$I$38","v":0},{"$f":"Prequalification!AE98","v":{"$error":"#DIV/0!"}},{"$f":"Y8","v":0}]
[{"$f":"Prequalification!$D$12","v":0},{"$f":"Prequalification!$D$14","v":0},{"$f":"Prequalification!$D$31","v":"Choisir une option "},{"$f":"IF(Prequalification!$F$38=\"\",\"\",Prequalification!$F$38)","v":"2021-12-31"},{"$f":"D9","v":"2021-12-31"},{"$f":"Prequalification!$F$40","v":0},{"$f":"Prequalification!$F$42","v":0},{"$f":"Prequalification!$F$44","v":0},{"$f":"Prequalification!$F$46","v":0},{"$f":"Prequalification!$F$48","v":0},{"$f":"Prequalification!$F$56","v":0},{"$f":"Prequalification!$F$58","v":0},{"$f":"Prequalification!$F$60","v":0},{"$f":"Prequalification!$F$62","v":0},{"$f":"Prequalification!$F$64","v":0},{"$f":"Prequalification!$F$66","v":0},{"$f":"Prequalification!$F$68","v":0},{"$f":"Prequalification!$F$70","v":0},{"$f":"Prequalification!$F$72","v":0},{"$f":"Prequalification!$F$74","v":0},{"$f":"Prequalification!$F$76","v":0},{"$f":"Prequalification!$F$78","v":0},{"$f":"Prequalification!D95","v":0},{"$f":"Prequalification!AA98","v":{"$error":"#DIV/0!"}},{"$f":"IFERROR((Prequalification!$F$66/Prequalification!$F$60),0)","v":0},{"$f":"CoteZ!$J$38","v":0},{"$f":"Prequalification!AG98","v":{"$error":"#DIV/0!"}},{"$f":"Y9","v":0}]
[{"$f":"Prequalification!$D$12","v":0},{"$f":"Prequalification!$D$14","v":0},{"$f":"Prequalification!$D$31","v":"Choisir une option "},{"$f":"IF(Prequalification!$H$38=\"\",\"\",Prequalification!$H$38)","v":"2020-12-31"},"2020-12-31",{"$f":"Prequalification!$H$40","v":0},{"$f":"Prequalification!$H$42","v":0},{"$f":"Prequalification!$H$44","v":0},{"$f":"Prequalification!$H$46","v":0},{"$f":"Prequalification!$H$48","v":0},{"$f":"Prequalification!$H$56","v":0},{"$f":"Prequalification!$H$58","v":0},{"$f":"Prequalification!$H$60","v":0},{"$f":"Prequalification!$H$62","v":0},{"$f":"Prequalification!$H$64","v":0},{"$f":"Prequalification!$H$66","v":0},{"$f":"Prequalification!$H$68","v":0},{"$f":"Prequalification!$H$70","v":0},{"$f":"Prequalification!$H$72","v":0},{"$f":"Prequalification!$H$74","v":0},{"$f":"Prequalification!$H$76","v":0},{"$f":"Prequalification!$H$78","v":0},{"$f":"Prequalification!F95","v":0},{"$f":"Prequalification!AC98","v":{"$error":"#DIV/0!"}},{"$f":"IFERROR((Prequalification!$H$66/Prequalification!$H$60),0)","v":0},{"$f":"CoteZ!$K$38","v":0},{"$f":"Prequalification!AH98","v":{"$error":"#DIV/0!"}},{"$f":"Y10","v":0}]

{"sheet":"CoteZ","index":5,"n_rows":49,"n_cols":12,"rows_kept":49,"cut":false,"hidden":true,"merged":[[44,2,44,5],[45,4,45,5],[47,4,48,5],[1,1,2,11],[26,1,27,11],[20,4,20,5],[22,4,23,5],[19,2,19,5],[37,6,37,7],[4,8,4,10],[4,4,4,6],[12,6,12,7],[29,4,29,6],[29,8,29,10]]}
[]
[null,"Admissibilité financière"]
[]
[]
[null,null,null,null,"Calculs",null,null,null,"Résultats"]
[null,"Ratios","Descriptions","Pondérations",{"$f":"Prequalification!$D$35","v":"Année 1"},{"$f":"Prequalification!$F$35","v":"Année 2"},{"$f":"Prequalification!$H$35","v":"Année 3"},null,{"$f":"Prequalification!$D$35","v":"Année 1"},{"$f":"Prequalification!$F$35","v":"Année 2"},{"$f":"Prequalification!$H$35","v":"Année 3"},"Formules"]
[null,1,"Mesure de liquidité",0.71699999999999997,{"$f":"IFERROR(((Prequalification!$D$56-Prequalification!$D$62)/Prequalification!$D$60),0)","v":0},{"$f":"IFERROR(((Prequalification!$F$56-Prequalification!$F$62)/Prequalification!$F$60),0)","v":0},{"$f":"IFERROR(((Prequalification!$H$56-Prequalification!$H$62)/Prequalification!$H$60),0)","v":0},null,{"$f":"$D7*E7","v":0},{"$f":"$D7*F7","v":0},0,"Fonds de roulement divisé Actifs totaux"]
[null,2,"Rendement cumulatif",0.84699999999999998,{"$f":"IFERROR((Prequalification!$D$70/Prequalification!$D$60),0)","v":0},{"$f":"IFERROR((Prequalification!$F$70/Prequalification!$F$60),0)","v":0},{"$f":"IFERROR((Prequalification!$H$70/Prequalification!$H$60),0)","v":0},null,{"$f":"$D8*E8","v":0},0,0,"BNR divisé Actifs total"]
[null,3,"Rentabilité",3.1070000000000002,{"$f":"IFERROR(((Prequalification!$D$46+Prequalification!$D$42)/Prequalification!$D$60),0)","v":0},{"$f":"IFERROR(((Prequalification!$F$46+Prequalification!$F$42)/Prequalification!$F$60),0)","v":0},{"$f":"IFERROR(((Prequalification!$H$46+Prequalification!$H$42)/Prequalification!$H$60),0)","v":0},null,0,0,0,"Bénéfices d'exploitation divisée actifs totaux"]
[null,4,"Structure de capital",0.42,{"$f":"IFERROR((Prequalification!$D$60/Prequalification!$D$66),0)","v":0},{"$f":"IFERROR((Prequalification!$F$60/Prequalification!$F$66),0)","v":0},{"$f":"IFERROR((Prequalification!$H$60/Prequalification!$H$66),0)","v":0},null,0,0,0,"Avoirs totaux divisés passifs totaux"]
[null,5,"Efficacité de la gestion des actifs",0.998,{"$f":"IFERROR((Prequalification!$D$40/Prequalification!$D$60),0)","v":0},{"$f":"IFERROR((Prequalification!$F$40/Prequalification!$F$60),0)","v":0},{"$f":"IFERROR((Prequalification!$H$40/Prequalification!$H$60),0)","v":0},null,0,0,0,"Ventes divisées actifs totaux"]
[]
[null,null,null,null,null,null,"Côte Z",null,{"$f":"SUM(I7:I12)","v":0},0,0]
[]
[null,"Ratios","Descriptions",null,{"$f":"Prequalification!$D$35","v":"Année 1"},{"$f":"Prequalification!$F$35","v":"Année 2"},{"$f":"Prequalification!$H$35","v":"Année 3"},null,null,null,null,"Formules"]
[null,7,"Liquidité générale",null,{"$f":"IFERROR((Prequalification!$D$56/Prequalification!$D$62),0)","v":0},{"$f":"IFERROR((Prequalification!$F$56/Prequalification!$F$62),0)","v":0},{"$f":"IFERROR((Prequalification!$H$56/Prequalification!$H$62),0)","v":0},null,null,null,null,"Actifs CT divisés Passifs CT"]
[null,8,"Endettement",null,{"$f":"IFERROR((Prequalification!$D$66/Prequalification!$D$60),0)","v":0},{"$f":"IFERROR((Prequalification!$F$66/Prequalification!$F$60),0)","v":0},{"$f":"IFERROR((Prequalification!$H$66/Prequalification!$H$60),0)","v":0},null,null,null,null,"Passifs totaux divisés actifs totaux"]
[null,9,"Croissance des ventes",null,{"$f":"(Prequalification!$D$40-Prequalification!$F$40)/Prequalification!$F$40","v":{"$error":"#DIV/0!"}},{"$f":"(Prequalification!$F$40-Prequalification!$H$40)/Prequalification!$H$40","v":{"$error":"#DIV/0!"}},0]
[]
[null,null,"Admissibilité"]
[null,null,"Critères","Résultats","Décision"]
[]
[null,null,"Côte Z",{"$f":"IF(I13=0,\"N/A\",IF((I13<1.3),\"Refusé\",IF((I13<2.7),\"Évaluation\",IF((I13>=2.7),\"Accepté\",\"-\"))))","v":"N/A"},{"$f":"IF(AND(D23=\"Refusé\",D24=\"Refusé\"),\"Refus B\",IF(AND(D23=\"Refusé\",D24=\"Accepté\"),\"Jugement professionnel requis\",IF(AND(D23=\"Évaluation\",D24=\"Refusé\"),\"Refus A\",IF(AND(D23=\"Évaluation\",D24=\"Accepté\"),\"Accepté\",IF(AND(D23=\"Accepté\",D24=\"Refusé\"),\"Jugement professionnel requis\",IF(AND(D23=\"Accepté\",D24=\"Accepté\"),\"Accepté\",\"-\"))))))","v":"-"}]
[null,null,"Liquidité générale",{"$f":"IF(E16=0,\"N/A\",IF((E16<1),\"Refusé\",IF((E16>=1),\"Accepté\",\"-\")))","v":"N/A"}]
[]
[]
[null,"Admissibilité financière (Jugement professionnel)"]
[]
[]
[null,null,null,null,"Calculs",null,null,null,"Résultats"]
[null,"Ratios","Descriptions","Pondérations",{"$f":"Prequalification!$D$35","v":"Année 1"},{"$f":"Prequalification!$F$35","v":"Année 2"},{"$f":"Prequalification!$H$35","v":"Année 3"},null,{"$f":"Prequalification!$D$35","v":"Année 1"},{"$f":"Prequalification!$F$35","v":"Année 2"},{"$f":"Prequalification!$H$35","v":"Année 3"},"Formules"]
[null,1,"Mesure de liquidité",0.71699999999999997,{"$f":"IFERROR(((Prequalification!$D$56-Prequalification!$D$62+Prequalification!$D$72+Prequalification!$D$74+Prequalification!$D$78)/Prequalification!$D$60),0)","v":0},{"$f":"IFERROR(((Prequalification!$F$56-Prequalification!$F$62+Prequalification!$F$72+Prequalification!$F$74+Prequalification!$F$78)/Prequalification!$F$60),0)","v":0},{"$f":"IFERROR(((Prequalification!$H$56-Prequalification!$H$62+Prequalification!$H$72+Prequalification!$H$74+Prequalification!$H$78)/Prequalification!$H$60),0)","v":0},null,{"$f":"$D32*E32","v":0},{"$f":"$D32*F32","v":0},{"$f":"$D32*G32","v":0},"Fonds de roulement divisé Actifs totaux"]
[null,2,"Rendement cumulatif",0.84699999999999998,{"$f":"IFERROR((Prequalification!$D$70/Prequalification!$D$60),0)","v":0},{"$f":"IFERROR((Prequalification!$F$70/Prequalification!$F$60),0)","v":0},{"$f":"IFERROR((Prequalification!$H$70/Prequalification!$H$60),0)","v":0},null,{"$f":"$D33*E33","v":0},0,0,"BNR divisé Actifs totaux"]
[null,3,"Rentabilité",3.1070000000000002,{"$f":"IFERROR(((Prequalification!$D$46+Prequalification!$D$42+Prequalification!$D$44)/Prequalification!$D$60),0)","v":0},{"$f":"IFERROR(((Prequalification!$F$46+Prequalification!$F$42+Prequalification!$F$44)/Prequalification!$F$60),0)","v":0},{"$f":"IFERROR(((Prequalification!$H$46+Prequalification!$H$42+Prequalification!$H$44)/Prequalification!$H$60),0)","v":0},null,0,0,0,"Bénéfices d'exploitation divisée actifs totaux"]
[null,4,"Structure de capital",0.42,{"$f":"IFERROR((Prequalification!$D$60/(Prequalification!$D$66-Prequalification!$D$76)),0)","v":0},{"$f":"IFERROR((Prequalification!$F$60/(Prequalification!$F$66-Prequalification!$F$76)),0)","v":0},{"$f":"IFERROR((Prequalification!$H$60/(Prequalification!$H$66-Prequalification!$H$76)),0)","v":0},null,0,0,0,"Avoirs totaux divisés passifs totaux"]
[null,5,"Efficacité de la gestion des actifs",0.998,{"$f":"IFERROR((Prequalification!$D$40/Prequalification!$D$60),0)","v":0},{"$f":"IFERROR((Prequalification!$F$40/Prequalification!$F$60),0)","v":0},{"$f":"IFERROR((Prequalification!$H$40/Prequalification!$H$60),0)","v":0},null,0,0,0,"Ventes divisées Actifs totaux"]
[]
[null,null,null,null,null,null,"Côte Z",null,{"$f":"SUM(I32:I37)","v":0},{"$f":"SUM(J32:J37)","v":0},{"$f":"SUM(K32:K37)","v":0}]
[]
[null,"Ratios","Descriptions",null,{"$f":"Prequalification!$D$35","v":"Année 1"},{"$f":"Prequalification!$F$35","v":"Année 2"},{"$f":"Prequalification!$H$35","v":"Année 3"},null,null,null,null,"Formules"]
[null,7,"Liquidité Général",null,{"$f":"IFERROR((Prequalification!$D$56/(Prequalification!$D$62-Prequalification!$D$72-Prequalification!$D$74-Prequalification!$D$78)),0)","v":0},{"$f":"IFERROR((Prequalification!$F$56/(Prequalification!$F$62-Prequalification!$F$72-Prequalification!$F$74-Prequalification!$F$78)),0)","v":0},{"$f":"IFERROR((Prequalification!$H$56/(Prequalification!$H$62-Prequalification!$H$72-Prequalification!$H$74-Prequalification!$H$78)),0)","v":0},null,null,null,null,"Actifs CT divisé Passifs CT"]
[null,8,"Endettement",null,{"$f":"IFERROR((Prequalification!$D$66/Prequalification!$D$60),0)","v":0},{"$f":"IFERROR((Prequalification!$F$66/Prequalification!$F$60),0)","v":0},{"$f":"IFERROR((Prequalification!$H$66/Prequalification!$H$60),0)","v":0},null,null,null,null,"Passifs totaux divisé actifs totaux"]
[null,9,"Croissance des ventes",null,{"$f":"(Prequalification!$D$40-Prequalification!$F$40)/Prequalification!$F$40","v":{"$error":"#DIV/0!"}},{"$f":"(Prequalification!$F$40-Prequalification!$H$40)/Prequalification!$H$40","v":{"$error":"#DIV/0!"}},0]
[]
[null,null,"Admissibilité"]
[null,null,"Critères","Résultats","Décision"]
[]
[null,null,"Côte Z",{"$f":"IF(I38=0,\"N/A\",IF((I38<1.3),\"Refusé\",IF((I38<2.7),\"Évaluation\",IF((I38>=2.7),\"Accepté\",\"-\"))))","v":"N/A"},{"$f":"IF(AND(D48=\"Refusé\",D49=\"Refusé\"),\"Refus B\",IF(AND(D48=\"Refusé\",D49=\"Accepté\"),\"Jugement professionnel requis\",IF(AND(D48=\"Évaluation\",D49=\"Refusé\"),\"Refus A\",IF(AND(D48=\"Évaluation\",D49=\"Accepté\"),\"Accepté\",IF(AND(D48=\"Accepté\",D49=\"Refusé\"),\"Jugement professionnel requis\",IF(AND(D48=\"Accepté\",D49=\"Accepté\"),\"Accepté\",\"-\"))))))","v":"-"}]
[null,null,"Liquidité Général",{"$f":"IF(E41=0,\"N/A\",IF((E41<1),\"Refusé\",IF((E41>=1),\"Accepté\",\"-\")))","v":"N/A"}]